{"text_format":"1","workbook":"xlsx","n_sheets":4,"sheets":["Notes","Tirage au sort","Mode d'emploi","Feuil1"],"not_rendered":{"charts":0,"images":0,"macros":1,"external_links":0,"defined_names":1,"comments":0,"pivot_tables":0},"unopened":[],"bounds":{"document_bytes":16777216,"sheet_cells":100000,"rows_first":2000,"rows_last":500,"rows_between":2000,"halvings":0,"cell_chars":16384,"cell_head_chars":4096},"cells_cut":0,"cells_raw":0,"read":"whole","date_system":"1900"}

{"sheet":"Notes","index":0,"n_rows":41,"n_cols":27,"rows_kept":41,"cut":false,"hidden":false,"merged":[]}
[null,null,null,null,null,null,null,null,null,null,null,null,null,null,null,null,null,null,null,null,null,null,null,null,null,null,"Joker"]
[{"$f":"RAND()-0.2*Y2","v":0.38927659948473425},"ELEVE 1",null,null,null,null,null,null,null,null,null,null,null,null,null,null,null,null,null,null,null,null,null,null,{"$f":"COUNTA(C2:X2)","v":0}]
[{"$f":"RAND()-0.2*Y3","v":0.81134259605717707},"ELEVE 2",null,null,null,null,null,null,null,null,null,null,null,null,null,null,null,null,null,null,null,null,null,null,{"$f":"COUNTA(C3:X3)","v":0}]
[{"$f":"RAND()-0.2*Y4","v":0.53942044404475176},null,null,null,null,null,null,null,null,null,null,null,null,null,null,null,null,null,null,null,null,null,null,null,{"$f":"COUNTA(C4:X4)","v":0}]
[{"$f":"RAND()-0.2*Y5","v":0.66330832722966004},null,null,null,null,null,null,null,null,null,null,null,null,null,null,null,null,null,null,null,null,null,null,null,{"$f":"COUNTA(C5:X5)","v":0}]
[{"$f":"RAND()-0.2*Y6","v":0.50920307253368757},null,null,null,null,null,null,null,null,null,null,null,null,null,null,null,null,null,null,null,null,null,null,null,{"$f":"COUNTA(C6:X6)","v":0}]
[{"$f":"RAND()-0.2*Y7","v":6.8958359875399555E-3},null,null,null,null,null,null,null,null,null,null,null,null,null,null,null,null,null,null,null,null,null,null,null,{"$f":"COUNTA(C7:X7)","v":0}]
[{"$f":"RAND()-0.2*Y8","v":0.4863402167596349},null,null,null,null,null,null,null,null,null,null,null,null,null,null,null,null,null,null,null,null,null,null,null,{"$f":"COUNTA(C8:X8)","v":0}]
[{"$f":"RAND()-0.2*Y9","v":0.61726140262568385},null,null,null,null,null,null,null,null,null,null,null,null,null,null,null,null,null,null,null,null,null,null,null,{"$f":"COUNTA(C9:X9)","v":0}]
[{"$f":"RAND()-0.2*Y10","v":0.26422541496366048},null,null,null,null,null,null,null,null,null,null,null,null,null,null,null,null,null,null,null,null,null,null,null,{"$f":"COUNTA(C10:X10)","v":0}]
[{"$f":"RAND()-0.2*Y11","v":0.14093196916760087},null,null,null,null,null,null,null,null,null,null,null,null,null,null,null,null,null,null,null,null,null,null,null,{"$f":"COUNTA(C11:X11)","v":0}]
[{"$f":"RAND()-0.2*Y12","v":0.98596002001517002},null,null,null,null,null,null,null,null,null,null,null,null,null,null,null,null,null,null,null,null,null,null,null,{"$f":"COUNTA(C12:X12)","v":0}]
[{"$f":"RAND()-0.2*Y13","v":0.7767633717610164},null,null,null,null,null,null,null,null,null,null,null,null,null,null,null,null,null,null,null,null,null,null,null,{"$f":"COUNTA(C13:X13)","v":0}]
[{"$f":"RAND()-0.2*Y14","v":0.83284617875677591},null,null,null,null,null,null,null,null,null,null,null,null,null,null,null,null,null,null,null,null,null,null,null,{"$f":"COUNTA(C14:X14)","v":0}]
[{"$f":"RAND()-0.2*Y15","v":0.5754164911716666},null,null,null,null,null,null,null,null,null,null,null,null,null,null,null,null,null,null,null,null,null,null,null,{"$f":"COUNTA(C15:X15)","v":0}]
[{"$f":"RAND()-0.2*Y16","v":0.401778233577189},null,null,null,null,null,null,null,null,null,null,null,null,null,null,null,null,null,null,null,null,null,null,null,{"$f":"COUNTA(C16:X16)","v":0}]
[{"$f":"RAND()-0.2*Y17","v":0.39160928328174782},null,null,null,null,null,null,null,null,null,null,null,null,null,null,null,null,null,null,null,null,null,null,null,{"$f":"COUNTA(C17:X17)","v":0}]
[{"$f":"RAND()-0.2*Y18","v":0.84590932509850769},null,null,null,null,null,null,null,null,null,null,null,null,null,null,null,null,null,null,null,null,null,null,null,{"$f":"COUNTA(C18:X18)","v":0}]
[{"$f":"RAND()-0.2*Y19","v":0.62664492607413447},null,null,null,null,null,null,null,null,null,null,null,null,null,null,null,null,null,null,null,null,null,null,null,{"$f":"COUNTA(C19:X19)","v":0}]
[{"$f":"RAND()-0.2*Y20","v":0.41012361496804028},null,null,null,null,null,null,null,null,null,null,null,null,null,null,null,null,null,null,null,null,null,null,null,{"$f":"COUNTA(C20:X20)","v":0}]
[{"$f":"RAND()-0.2*Y21","v":0.55928346733700229},null,null,null,null,null,null,null,null,null,null,null,null,null,null,null,null,null,null,null,null,null,null,null,{"$f":"COUNTA(C21:X21)","v":0}]
[{"$f":"RAND()-0.2*Y22","v":0.16866778879387456},null,null,null,null,null,null,null,null,null,null,null,null,null,null,null,null,null,null,null,null,null,null,null,{"$f":"COUNTA(C22:X22)","v":0}]
[{"$f":"RAND()-0.2*Y23","v":0.96882861673319676},null,null,null,null,null,null,null,null,null,null,null,null,null,null,null,null,null,null,null,null,null,null,null,{"$f":"COUNTA(C23:X23)","v":0}]
[{"$f":"RAND()-0.2*Y24","v":0.69571135049560906},null,null,null,null,null,null,null,null,null,null,null,null,null,null,null,null,null,null,null,null,null,null,null,{"$f":"COUNTA(C24:X24)","v":0}]
[{"$f":"RAND()-0.2*Y25","v":0.91855657414259206},null,null,null,null,null,null,null,null,null,null,null,null,null,null,null,null,null,null,null,null,null,null,null,{"$f":"COUNTA(C25:X25)","v":0}]
[{"$f":"RAND()-0.2*Y26","v":0.16201620929408977},null,null,null,null,null,null,null,null,null,null,null,null,null,null,null,null,null,null,null,null,null,null,null,{"$f":"COUNTA(C26:X26)","v":0}]
[{"$f":"RAND()-0.2*Y27","v":0.90331357263955303},null,null,null,null,null,null,null,null,null,null,null,null,null,null,null,null,null,null,null,null,null,null,null,{"$f":"COUNTA(C27:X27)","v":0}]
[{"$f":"RAND()-0.2*Y28","v":0.9616989838371196},null,null,null,null,null,null,null,null,null,null,null,null,null,null,null,null,null,null,null,null,null,null,null,{"$f":"COUNTA(C28:X28)","v":0}]
[{"$f":"RAND()-0.2*Y29","v":0.2661012036729351},null,null,null,null,null,null,null,null,null,null,null,null,null,null,null,null,null,null,null,null,null,null,null,{"$f":"COUNTA(C29:X29)","v":0}]
[{"$f":"RAND()-0.2*Y30","v":0.84528742086589181},null,null,null,null,null,null,null,null,null,null,null,null,null,null,null,null,null,null,null,null,null,null,null,{"$f":"COUNTA(C30:X30)","v":0}]
[{"$f":"RAND()-0.2*Y31","v":0.7194178889360624},null,null,null,null,null,null,null,null,null,null,null,null,null,null,null,null,null,null,null,null,null,null,null,{"$f":"COUNTA(C31:X31)","v":0}]
[{"$f":"RAND()-0.2*Y32","v":0.78136663658052175},null,null,null,null,null,null,null,null,null,null,null,null,null,null,null,null,null,null,null,null,null,null,null,{"$f":"COUNTA(C32:X32)","v":0}]
[{"$f":"RAND()-0.2*Y33","v":6.8491888727253425E-2},null,null,null,null,null,null,null,null,null,null,null,null,null,null,null,null,null,null,null,null,null,null,null,{"$f":"COUNTA(C33:X33)","v":0}]
[{"$f":"RAND()-0.2*Y34","v":0.21040060208796363},null,null,null,null,null,null,null,null,null,null,null,null,null,null,null,null,null,null,null,null,null,null,null,{"$f":"COUNTA(C34:X34)","v":0}]
[{"$f":"RAND()-0.2*Y35","v":0.52311371871384182},null,null,null,null,null,null,null,null,null,null,null,null,null,null,null,null,null,null,null,null,null,null,null,{"$f":"COUNTA(C35:X35)","v":0}]
[{"$f":"RAND()-0.2*Y36","v":0.50709825827789312},null,null,null,null,null,null,null,null,null,null,null,null,null,null,null,null,null,null,null,null,null,null,null,{"$f":"COUNTA(C36:X36)","v":0}]
[{"$f":"RAND()-0.2*Y37","v":0.55378464245932679},null,null,null,null,null,null,null,null,null,null,null,null,null,null,null,null,null,null,null,null,null,null,null,{"$f":"COUNTA(C37:X37)","v":0}]
[{"$f":"RAND()-0.2*Y38","v":0.1630372393547953},null,null,null,null,null,null,null,null,null,null,null,null,null,null,null,null,null,null,null,null,null,null,null,{"$f":"COUNTA(C38:X38)","v":0}]
[{"$f":"RAND()-0.2*Y39","v":0.36862464302247944},null,null,null,null,null,null,null,null,null,null,null,null,null,null,null,null,null,null,null,null,null,null,null,{"$f":"COUNTA(C39:X39)","v":0}]
[{"$f":"RAND()-0.2*Y40","v":0.6926746623436173},null,null,null,null,null,null,null,null,null,null,null,null,null,null,null,null,null,null,null,null,null,null,null,{"$f":"COUNTA(C40:X40)","v":0}]
[{"$f":"RAND()-0.2*Y41","v":0.24811095637456737},null,null,null,null,null,null,null,null,null,null,null,null,null,null,null,null,null,null,null,null,null,null,null,{"$f":"COUNTA(C41:X41)","v":0}]

{"sheet":"Tirage au sort","index":1,"n_rows":0,"n_cols":0,"rows_kept":0,"cut":false,"hidden":false,"merged":[]}

{"sheet":"Mode d'emploi","index":2,"n_rows":0,"n_cols":0,"rows_kept":0,"cut":false,"hidden":false,"merged":[]}

{"sheet":"Feuil1","index":3,"n_rows":0,"n_cols":0,"rows_kept":0,"cut":false,"hidden":true,"merged":[]}